bitfinex/quotes_SOLUSD_20250507
["timestamp","ask_amount","ask_price","bid_price","bid_amount"]
[1746608661145,1.5803,148.2,148.15,8.99937638]
[1746608661146,8.99937638,148.19,148.15,8.99937638]
[1746608661328,8.99937638,148.19,148.14,8.99937638]
[1746608661535,1.5803,148.2,148.14,8.99937638]
[1746608661839,8.99937638,148.19,148.14,8.99937638]
[1746608662220,8.99937638,148.19,148.15,8.99937638]
[1746608663847,8.99937638,148.19,148.16,6.74946004]
[1746608667143,8.99937638,148.18,148.16,6.74946004]
[1746608667649,8.99937638,148.17,148.16,6.74946004]
[1746608667947,8.99937638,148.18,148.16,6.74946004]
[1746608668347,8.99937638,148.18,148.14,6.75037127]
[1746608668940,8.99937638,148.17,148.14,6.75037127]
[1746608669167,8.99937638,148.18,148.14,6.75037127]
[1746608670946,8.99937638,148.18,148.14,15.74974765]
[1746608671755,8.99937638,148.19,148.14,15.74974765]
[1746608672950,6.74821149,148.19,148.14,6.75037127]
[1746608673139,8.99937638,148.19,148.14,6.75037127]
[1746608673338,8.99937638,148.19,148.15,8.99937638]
[1746608674759,8.32797998,148.2,148.15,15.74898489]
[1746608674958,8.99937638,148.19,148.15,15.74898489]
[1746608677866,8.99937638,148.19,148.14,15.74974765]
[1746608680868,8.99937638,148.19,148.15,8.99937638]
[1746608682775,8.99937638,148.19,148.16,6.74946004]
[1746608683475,26.0,148.21,148.17,8.99937638]
[1746608683679,34.99937638,148.21,148.17,8.99937638]
[1746608683973,34.99937638,148.21,148.16,15.74883642]
[1746608684873,6.0629,148.23,148.16,6.74946004]
[1746608685055,1.5116,148.24,148.2,8.99937638]
[1746608685254,10.51097638,148.24,148.19,8.99937638]
[1746608685563,8.99937638,148.21,148.16,6.74946004]
[1746608685766,8.25743455,148.24,148.16,6.74946004]
[1746608685767,8.99937638,148.19,148.16,6.74946004]
[1746608686064,8.99937638,148.21,148.17,8.99937638]
[1746608686779,8.99937638,148.21,148.17,15.74827954]
[1746608687776,15.74662235,148.21,148.17,8.99937638]
[1746608688074,8.99937638,148.2,148.16,15.74865953]
[1746608688248,8.99937638,148.2,148.16,8.99937638]
[1746608690680,15.74662235,148.21,148.16,8.99937638]
[1746608690982,15.74662235,148.21,148.16,15.74880678]
[1746608691870,15.74662235,148.21,148.16,8.99937638]
[1746608692980,15.74662235,148.21,148.16,15.74882085]
[1746608693472,15.74662235,148.21,148.16,8.99937638]
[1746608694083,8.99937638,148.19,148.11,1.5302]
[1746608694259,8.99937638,148.18,148.14,8.99937638]
[1746608694973,15.74830173,148.18,148.13,8.99937638]
[1746608695787,20.79950938,148.18,148.13,14.05058403]
[1746608696186,20.79950938,148.18,148.14,14.05058403]
[1746608696885,20.79950938,148.18,148.13,14.05058403]
[1746608697185,20.79950938,148.18,148.12,6.75108048]
[1746608697383,14.05058403,148.17,148.13,14.05058403]
[1746608698269,20.79982648,148.17,148.11,6.75158529]
[1746608698461,14.05058403,148.16,148.12,14.05058403]
[1746608699387,20.80006434,148.16,148.12,14.05058403]
[1746608699805,14.05058403,148.16,148.12,20.80166005]
[1746608700168,20.79977495,148.17,148.12,20.80166005]
[1746608700379,20.79977495,148.17,148.13,14.05058403]
[1746608703992,14.05058403,148.14,148.09,6.75265041]
[1746608704376,14.05058403,148.14,148.1,14.05058403]
[1746608705185,14.05058403,148.14,148.08,6.75291367]
[1746608705186,14.05058403,148.13,148.09,14.05058403]
[1746608705487,137.7,148.15,148.08,6.75291367]
[1746608705488,137.7,148.15,148.12,14.05058403]
[1746608705786,26.0,148.17,148.14,14.05058403]
[1746608705982,26.0,148.17,148.15,14.05058403]
[1746608706359,16.32,148.18,148.15,14.05058403]
[1746608707589,16.32,148.18,148.16,14.05058403]
[1746608707782,16.32,148.18,148.15,14.05058403]
[1746608708089,16.32,148.18,148.13,23.62746884]
[1746608708296,16.32,148.18,148.15,14.05058403]
[1746608709984,16.32,148.18,148.15,6.7495185]
[1746608710193,16.32,148.18,148.16,14.05058403]
[1746608710395,137.7,148.19,148.16,14.05058403]
[1746608711172,14.05058403,148.21,148.17,14.05058403]
[1746608711598,30.37058403,148.22,148.17,14.05058403]
[1746608711778,30.37058403,148.22,148.18,14.05058403]
[1746608712181,30.37058403,148.22,148.18,20.79882361]
[1746608713401,30.37058403,148.22,148.17,6.74900452]
[1746608713402,14.05058403,148.21,148.17,6.74900452]
[1746608713574,14.05058403,148.21,148.17,32.74900452]
[1746608713775,14.05058403,148.21,148.17,46.79958855]
[1746608715198,14.05058403,148.21,148.17,20.79958855]
[1746608716008,14.05058403,148.2,148.17,6.74900452]
[1746608717505,14.05058403,148.21,148.17,6.74900452]
[1746608718515,14.05058403,148.21,148.17,20.79958855]
[1746608721905,14.05058403,148.22,148.18,14.05058403]
[1746608722405,14.05058403,148.22,148.19,6.74809366]
[1746608723312,17.9691,148.24,148.19,20.79867769]
[1746608723617,14.05058403,148.23,148.19,20.79867769]
[1746608725187,30.37058403,148.24,148.2,14.05058403]
[1746608725413,14.05058403,148.24,148.2,14.05058403]
[1746608726138,14.05058403,148.24,148.21,6.74718305]
[1746608727544,14.05058403,148.24,148.22,29.959128]
[1746608731537,14.05058403,148.24,148.22,36.70583051]
[1746608732745,14.05058403,148.24,148.22,29.959128]
[1746608732933,144.816372,148.25,148.22,36.7058381]
[1746608733143,14.05058403,148.24,148.22,36.7058381]
[1746608733450,14.05058403,148.24,148.22,29.959128]
[1746608734155,0.949272,148.25,148.22,53.57231454]
[1746608734347,0.949272,148.25,148.24,46.75081692]
[1746608734521,14.05058403,148.34,148.25,18.64964886]
[1746608734723,40.05058403,148.33,148.29,14.05058403]
[1746608735138,137.7,148.34,148.29,20.79389742]
[1746608735442,137.7,148.34,148.32,14.05058403]
[1746608736629,158.49186205,148.34,148.27,6.74445268]
[1746608736951,158.49186205,148.34,148.3,14.05058403]
[1746608737319,151.75058403,148.34,148.3,14.05058403]
[1746608737528,158.49212666,148.34,148.3,14.05058403]
[1746608738052,7.683,148.45,148.33,14.05058403]
[1746608738247,6.73672864,148.44,148.39,14.05058403]
[1746608738431,7.683,148.45,148.35,44.64964886]
[1746608738635,6.73527376,148.48,148.36,18.64964886]
[1746608738818,20.78585779,148.48,148.44,14.05058403]
[1746608739139,14.05058403,148.47,148.4,6.73822393]
[1746608739336,14.05058403,148.45,148.39,32.73884391]
[1746608739543,14.05058403,148.44,148.4,14.05058403]
[1746608740143,23.57255824,148.48,148.4,14.05058403]
[1746608740332,14.05058403,148.44,148.4,14.05058403]
[1746608741050,6.73718251,148.43,148.4,14.05058403]
[1746608741634,6.73718251,148.43,148.34,18.64964886]
[1746608741834,14.05058403,148.41,148.36,14.05058403]
[1746608742043,14.05058403,148.41,148.37,14.05058403]
[1746608742538,6.73854447,148.4,148.37,14.05058403]
[1746608743467,20.7891285,148.4,148.33,39.1326662]
[1746608743639,14.05058403,148.38,148.34,14.05058403]
[1746608743838,22.41850575,148.38,148.34,22.41850575]
[1746608744054,22.41850575,148.38,148.33,22.41850575]
[1746608744360,22.41850575,148.38,148.34,22.41850575]
[1746608744534,6.73990698,148.37,148.34,22.41850575]
[1746608744739,6.73990698,148.37,148.31,6.74232002]
[1746608744954,6.73990698,148.37,148.34,22.41850575]
[1746608745137,6.73990698,148.37,148.31,6.74232002]
[1746608745459,6.73990698,148.37,148.33,22.41850575]
[1746608745956,22.41850575,148.37,148.33,22.41850575]
[1746608746253,22.41850575,148.37,148.32,22.41850575]
[1746608746941,22.41850575,148.36,148.32,22.41850575]
[1746608747659,22.41850575,148.36,148.3,6.74308833]
[1746608747838,22.41850575,148.36,148.31,22.41850575]
[1746608748251,29.15881243,148.37,148.32,22.41850575]
[1746608751869,29.15881243,148.37,148.33,22.41850575]
[1746608753465,22.41850575,148.37,148.33,6.74164557]
[1746608753763,22.41850575,148.37,148.32,29.16049922]
[1746608754061,22.41850575,148.37,148.33,22.41850575]
[1746608755262,22.41850575,148.37,148.32,29.16049922]
[1746608756255,29.15843286,148.37,148.32,29.16049922]
[1746608756865,22.41850575,148.37,148.32,29.16049922]
[1746608757067,163.7,148.39,148.34,22.41850575]
[1746608757276,186.11850575,148.39,148.34,22.41850575]
[1746608757449,186.11850575,148.39,148.35,22.41850575]
[1746608757649,160.11850575,148.39,148.35,22.41850575]
[1746608758160,160.11850575,148.39,148.34,22.41850575]
[1746608758365,17.84,148.41,148.37,22.41850575]
[1746608758664,38.65850575,148.41,148.37,22.41850575]
[1746608759170,38.65850575,148.41,148.36,29.15886703]
[1746608759364,22.41850575,148.41,148.37,22.41850575]
[1746608759560,160.11850575,148.42,148.38,22.41850575]
[1746608759767,22.41850575,148.43,148.38,22.41850575]
[1746608760062,22.41850575,148.4,148.36,29.15886703]
[1746608760268,22.41850575,148.43,148.38,22.41850575]
[1746608760466,172.06817355,148.45,148.39,22.41850575]
[1746608760673,22.41850575,148.43,148.39,22.41850575]
[1746608760969,22.41850575,148.42,148.38,22.41850575]
[1746608761567,22.41850575,148.43,148.4,6.73854447]
[1746608762683,22.41850575,148.43,148.39,6.73899858]
[1746608762867,22.41850575,148.43,148.39,29.15750433]
[1746608763248,137.7,148.49,148.4,8.0814]
[1746608763472,186.11850575,148.49,148.44,22.41850575]
[1746608763847,177.69039005,148.49,148.44,13.99039005]
[1746608764072,13.99039005,148.48,148.43,13.99039005]
[1746608764244,137.7,148.49,148.41,18.64964886]
[1746608764463,151.69039005,148.49,148.44,13.99039005]
[1746608764666,13.99039005,148.48,148.45,6.73627484]
[1746608765759,13.99039005,148.48,148.44,6.73669138]
[1746608766787,13.99039005,148.47,148.43,20.72739616]
[1746608767149,13.99039005,148.48,148.43,20.72739616]
[1746608767970,13.99039005,148.44,148.37,35.49837864]
[1746608768177,13.99039005,148.41,148.38,6.73945275]
[1746608768979,13.99039005,148.42,148.38,20.7298428]
[1746608769471,13.99039005,148.42,148.38,6.73945275]
[1746608769653,13.99039005,148.43,148.38,20.7298428]
[1746608770981,13.99039005,148.43,148.39,20.72922677]
[1746608771681,20.72760923,148.43,148.39,13.99039005]
[1746608771868,22.40303212,148.42,148.38,29.14222407]
[1746608772788,6.73627484,148.45,148.38,29.14222407]
[1746608772960,22.40303212,148.42,148.38,29.14222407]
[1746608773685,22.40303212,148.42,148.38,6.73919195]
[1746608773981,22.40303212,148.42,148.38,29.14222407]
[1746608774886,22.40303212,148.43,148.38,29.14222407]
[1746608775061,22.40303212,148.43,148.39,22.40303212]
[1746608776086,22.40303212,148.43,148.38,29.14222407]
[1746608776791,29.14064752,148.43,148.38,6.73919195]
[1746608776986,22.40303212,148.41,148.38,6.73919195]
[1746608777787,6.7376154,148.43,148.38,6.73919195]
[1746608778086,22.40303212,148.42,148.38,6.73919195]
[1746608778475,22.40303212,148.43,148.38,6.73919195]
[1746608779073,29.14026085,148.43,148.38,6.73919195]
[1746608779598,22.40303212,148.43,148.38,6.73919195]
[1746608779779,29.14004572,148.44,148.38,29.14222407]
[1746608780287,30.36643212,148.39,148.29,6.74354305]
[1746608780473,22.40303212,148.33,148.29,6.74354305]
[1746608780796,22.40303212,148.33,148.29,29.14657517]
[1746608780973,22.40303212,148.34,148.3,22.40303212]
[1746608781490,22.40303212,148.33,148.28,6.74379317]
[1746608781822,22.40303212,148.3,148.25,6.74532823]
[1746608781999,22.40303212,148.29,148.25,22.40303212]
[1746608783199,29.14664879,148.29,148.25,22.40303212]
[1746608783897,29.14664879,148.29,148.24,6.74574434]
[1746608784099,22.40303212,148.28,148.22,29.959128]
[1746608784280,22.40303212,148.26,148.22,29.959128]
[1746608784479,22.40303212,148.26,148.22,52.36216012]
[1746608784704,22.40303212,148.27,148.23,22.40303212]
[1746608785606,22.40303212,148.26,148.22,52.36216012]
[1746608785811,22.40303212,148.26,148.22,29.959128]
[1746608785991,22.40303212,148.24,148.22,29.959128]
[1746608786192,22.40303212,148.23,148.22,29.959128]
[1746608787085,137.7,148.26,148.22,29.959128]
[1746608787291,22.40303212,148.24,148.22,29.959128]
[1746608790287,137.7,148.26,148.22,59.10882494]
[1746608790488,137.7,148.3,148.25,22.40303212]
[1746608790679,137.7,148.3,148.22,36.70579282]
[1746608790680,160.10303212,148.3,148.26,22.40303212]
[1746608790886,137.7,148.3,148.27,22.40303212]
[1746608791479,160.10303212,148.3,148.27,22.40303212]
[1746608791685,160.10303212,148.3,148.26,22.40303212]
[1746608792201,160.10303212,148.3,148.27,6.74445268]
[1746608792984,137.7,148.34,148.27,29.1474848]
[1746608793179,22.40303212,148.32,148.28,22.40303212]
[1746608793396,137.7,148.34,148.28,22.40303212]
[1746608793603,22.40303212,148.32,148.28,22.40303212]
[1746608793806,22.40303212,148.29,148.27,6.74445268]
[1746608794015,22.40303212,148.28,148.25,6.74536256]
[1746608795809,6.7425963,148.32,148.25,29.14839468]
[1746608795994,22.40303212,148.29,148.25,29.14839468]
[1746608797190,22.40303212,148.28,148.25,6.74536256]
[1746608797400,22.40303212,148.27,148.25,6.74536256]
[1746608797883,22.40303212,148.26,148.25,6.74536256]
[1746608798084,22.40303212,148.27,148.25,6.74536256]
[1746608798297,22.40303212,148.28,148.24,6.74581759]
[1746608798801,22.40303212,148.29,148.24,29.14884971]
[1746608799111,22.40303212,148.3,148.24,29.14884971]
[1746608799407,22.40303212,148.3,148.25,22.40303212]
[1746608799587,22.40303212,148.3,148.24,22.40303212]
[1746608800412,22.40303212,148.29,148.25,6.74536256]
[1746608802013,22.40303212,148.27,148.24,6.74563003]
[1746608804836,22.40303212,148.27,148.23,6.74627268]
[1746608805036,22.40303212,148.25,148.22,36.70569082]
[1746608810418,22.40303212,148.24,148.22,29.959128]
[1746608810820,22.40303212,148.23,148.22,29.959128]
[1746608812647,137.7,148.25,148.22,52.36216012]
[1746608813450,137.7,148.25,148.22,59.10888795]
[1746608813948,137.7,148.25,148.22,36.70585583]
[1746608814121,160.10303212,148.25,148.22,36.70585583]
[1746608814845,160.10303212,148.25,148.22,29.959128]
[1746608815049,22.40303212,148.23,148.22,29.959128]
[1746608816643,29.1493048,148.23,148.22,29.959128]
[1746608816840,55.1493048,148.23,148.22,29.959128]
[1746608817044,56.6708048,148.23,148.22,29.959128]
[1746608817538,75.32045366,148.23,148.22,29.959128]
[1746608817746,81.62005366,148.23,148.22,29.959128]
[1746608819549,56.22413212,148.23,148.22,29.959128]
[1746608825754,47.86621171,148.23,148.22,29.959128]
[1746608827757,40.04511171,148.23,148.22,29.959128]
[1746608828057,14.04511171,148.23,148.22,36.70585583]
[1746608828433,30.20511171,148.25,148.22,36.70585583]
[1746608829053,14.04511171,148.24,148.22,36.70585583]
[1746608829658,14.04511171,148.23,148.22,36.70585583]
[1746608829847,22.45911403,148.23,148.22,36.70585583]
[1746608830357,22.45911403,148.23,148.22,29.959128]
[1746608832145,22.90553464,148.25,148.22,29.959128]
[1746608832366,22.45911403,148.23,148.22,29.959128]
[1746608836073,22.45911403,148.24,148.22,29.959128]
[1746608838975,22.45911403,148.23,148.22,29.959128]
[1746608841680,29.20538671,148.23,148.22,29.959128]
[1746608844072,22.45911403,148.23,148.22,29.959128]
[1746608844267,160.15911403,148.23,148.22,29.959128]
[1746608845284,137.7,148.23,148.22,29.959128]
[1746608845586,47.85503557,148.23,148.22,29.959128]
[1746608846091,53.36585609,148.23,148.22,29.959128]
[1746608846791,18.64964886,148.22,148.14,6.75018631]
[1746608846990,22.45911403,148.17,148.14,6.75018631]
[1746608847561,5.03825733,148.16,148.14,6.75018631]
[1746608848395,22.45911403,148.17,148.14,6.75018631]
[1746608849291,22.45911403,148.16,148.13,8.25754767]
[1746608849470,6.74888051,148.18,148.1,23.6324804]
[1746608849471,22.45911403,148.15,148.1,23.6324804]
[1746608849676,22.45911403,148.15,148.11,22.45911403]
[1746608849886,14.05356058,148.14,148.1,37.68604098]
[1746608850286,14.05356058,148.14,148.1,20.80575504]
[1746608850469,5.04122631,148.13,148.1,20.80575504]
[1746608851365,5.04122631,148.12,148.11,14.05356058]
[1746608851581,5.04122631,148.12,148.11,39.45494801]
[1746608851792,5.04122631,148.12,148.11,53.50850859]
[1746608852097,5.04122631,148.16,148.11,70.38785502]
[1746608852393,5.04122631,148.16,148.14,14.05356058]
[1746608852687,5.04122631,148.16,148.11,23.631085]
[1746608852885,5.04122631,148.16,148.13,14.05356058]
[1746608853080,5.04122631,148.15,148.13,14.05356058]
[1746608853995,5.04122631,148.14,148.13,20.80438755]
[1746608854880,5.04122631,148.14,148.13,6.75082697]
[1746608857196,5.04122631,148.14,148.1,6.75219446]
[1746608857495,5.04122631,148.14,148.13,14.05356058]
[1746608859900,5.04122631,148.14,148.13,20.80438755]
[1746608860302,5.04122631,148.14,148.13,6.75082697]
[1746608860482,5.04122631,148.14,148.11,20.80529915]
[1746608861793,5.04122631,148.13,148.11,20.80529915]
[1746608862176,5.04122631,148.13,148.1,20.80555488]
[1746608862691,5.04122631,148.13,148.1,6.7519943]
[1746608862875,5.04122631,148.13,148.1,20.80555488]
[1746608863371,5.04122631,148.12,148.1,20.80555488]
[1746608864702,5.04122631,148.11,148.1,6.7519943]
[1746608864876,5.04122631,148.11,148.1,20.80555488]
[1746608867799,14.05356058,148.16,148.1,20.80555488]
[1746608867979,137.7,148.18,148.12,14.05356058]
[1746608868304,14.05356058,148.17,148.13,14.05356058]
[1746608868882,14.05356058,148.16,148.12,14.05356058]
[1746608869082,144.44857169,148.18,148.1,23.63248045]
[1746608869083,14.05356058,148.14,148.1,20.80555488]
[1746608869284,14.05356058,148.13,148.1,6.7519943]
[1746608869979,14.05356058,148.12,148.1,6.7519943]
[1746608870794,14.05356058,148.12,148.09,6.75247648]
[1746608871390,5.0347254,148.11,148.09,6.75247648]
[1746608872999,5.0347254,148.11,148.09,20.80603706]
[1746608873900,19.08828598,148.12,148.09,6.75247648]
[1746608874791,5.0347254,148.11,148.09,6.75247648]
[1746608875912,5.0347254,148.11,148.09,20.80603706]
[1746608876407,14.05356058,148.13,148.09,20.80603706]
[1746608877203,5.03212619,148.12,148.09,20.80603706]
[1746608878408,19.08568677,148.12,148.09,6.75247648]
[1746608878612,5.03212619,148.11,148.09,6.75247648]
[1746608879811,14.05356058,148.12,148.09,6.75247648]
[1746608880311,14.05356058,148.13,148.09,14.05356058]
[1746608880904,19.08702625,148.12,148.07,23.63746876]
[1746608881110,5.03346567,148.12,148.08,14.05356058]
[1746608881297,5.03346567,148.12,148.09,14.05356058]
[1746608881988,5.03346567,148.11,148.1,14.05356058]
[1746608882379,5.03346567,148.11,148.1,20.80575504]
[1746608883294,5.03346567,148.13,148.1,37.68624119]
[1746608883605,5.03346567,148.13,148.12,14.05356058]
[1746608885305,5.03346567,148.13,148.12,20.80484332]
[1746608885510,5.03346567,148.13,148.12,6.75128274]
[1746608887920,19.08702625,148.13,148.09,14.05356058]
[1746608888308,5.03346567,148.12,148.09,14.05356058]
[1746608888909,19.08702625,148.12,148.08,14.05356058]
[1746608889298,5.03346567,148.11,148.08,14.05356058]
[1746608889918,5.03346567,148.11,148.09,6.75265041]
[1746608890117,5.03346567,148.1,148.09,6.75265041]
[1746608892129,5.03346567,148.1,148.08,14.05356058]
[1746608892420,14.05356058,148.13,148.09,14.05356058]
[1746608892621,14.05356058,148.13,148.07,6.7535625]
[1746608892823,14.05356058,148.13,148.09,14.05356058]
[1746608893205,14.05356058,148.13,148.09,20.80587831]
[1746608893404,14.05356058,148.12,148.09,6.75231773]
[1746608893620,19.10929121,148.12,148.09,6.75231773]
[1746608894811,5.05573063,148.11,148.09,6.75231773]
[1746608895203,5.05573063,148.11,148.07,6.7535625]
[1746608895399,19.10929121,148.11,148.07,20.80712308]
[1746608895617,19.10929121,148.11,148.05,20.80803541]
[1746608895618,14.05356058,148.1,148.05,20.80803541]
[1746608896028,19.10929121,148.09,148.05,20.80803541]
[1746608896324,19.10929121,148.09,148.05,6.75447483]
[1746608896513,19.10929121,148.09,148.05,20.80803541]
[1746608896719,5.05573063,148.09,148.05,20.80803541]
[1746608896923,5.05573063,148.08,148.05,20.80803541]
[1746608897104,5.05573063,148.08,148.05,6.75447483]
[1746608897429,5.05573063,148.08,148.04,20.80815976]
[1746608898128,5.05573063,148.07,148.04,20.80815976]
[1746608899005,151.75356058,148.09,148.04,20.80815976]
[1746608899006,137.7,148.09,148.04,6.75459918]
[1746608899310,137.7,148.09,148.06,14.05356058]
[1746608899533,137.7,148.09,148.07,6.7535625]
[1746608899831,5.05073802,148.08,148.07,6.7535625]
[1746608900837,5.05073802,148.08,148.04,20.80849167]
[1746608901214,19.1042986,148.08,148.04,6.75493109]
[1746608901531,14.05356058,148.07,148.0,23.64864864]
[1746608901730,5.05073802,148.07,148.0,23.64864864]
[1746608901904,5.05073802,148.07,148.04,14.05356058]
[1746608902630,5.05073802,148.07,148.0,23.64864864]
[1746608902829,5.05073802,148.06,148.03,14.05356058]
[1746608903732,5.05073802,148.06,148.04,6.75493109]
[1746608903908,5.05073802,148.06,148.04,20.80849167]
[1746608904433,5.05073802,148.05,148.04,20.80849167]
[1746608907714,14.05356058,148.11,148.04,20.80849167]
[1746608907715,14.05356058,148.09,148.04,20.80849167]
[1746608908022,186.41144614,148.12,148.04,20.80849167]
[1746608908023,14.05356058,148.11,148.07,14.05356058]
[1746608908728,5.04346959,148.1,148.08,6.75310642]
[1746608910039,5.04346959,148.09,148.08,6.75310642]
[1746608910534,5.04346959,148.09,148.05,6.75447483]
[1746608910711,19.09703017,148.09,148.05,20.80803541]
[1746608911037,19.09703017,148.09,148.05,6.75447483]
[1746608911417,14.05356058,148.08,148.05,6.75447483]
[1746608911618,19.09703017,148.09,148.05,20.80803541]
[1746608911820,5.04346959,148.08,148.06,14.05356058]
[1746608912221,5.04346959,148.08,148.05,6.75447483]
[1746608912535,5.04346959,148.08,148.05,20.80803541]
[1746608912841,5.04346959,148.07,148.05,20.80803541]
[1746608913543,5.04346959,148.07,148.06,14.05356058]
[1746608914641,5.04346959,148.07,148.05,6.75447483]
[1746608914842,5.04346959,148.06,148.05,6.75447483]
[1746608916438,5.04346959,148.06,148.05,20.80803541]
[1746608924150,5.04346959,148.06,148.05,6.75447483]
[1746608925329,5.04346959,148.06,148.04,6.75471007]
[1746608925524,19.09703017,148.06,148.03,6.75529913]
[1746608925769,19.09703017,148.06,148.02,6.75562966]
[1746608925942,5.04346959,148.05,148.02,6.75562966]
[1746608926657,19.09703017,148.05,148.02,6.75562966]
[1746608926866,19.09703017,148.05,148.0,20.81031733]
[1746608927368,5.04346959,148.04,148.0,20.81031733]
[1746608927842,5.04346959,148.03,148.01,14.05356058]
[1746608928451,5.04346959,148.03,148.02,6.7558438]
[1746608929869,5.04346959,148.03,148.02,20.80940438]
[1746608931171,5.04346959,148.03,148.02,39.45905324]
[1746608933558,6.0568,148.1,148.03,18.64964886]
[1746608933876,6.0568,148.1,148.06,14.05356058]
[1746608934277,20.11036058,148.1,148.06,14.05356058]
[1746608935475,20.11036058,148.1,148.07,6.7535625]
[1746608936682,14.05356058,148.09,148.05,20.80784838]
[1746608936875,14.05356058,148.08,148.05,6.7542878]
[1746608937077,19.10639574,148.09,148.05,6.7542878]
[1746608937273,5.05283516,148.09,148.06,14.05356058]
[1746608937582,137.7,148.11,148.08,20.806667]
[1746608937766,151.75356058,148.11,148.08,6.75310642]
[1746608937963,151.75356058,148.11,148.07,20.80691639]
[1746608938882,5.05540489,148.1,148.07,20.80691639]
[1746608940187,5.05540489,148.09,148.07,20.80691639]
[1746608941061,5.05540489,148.08,148.07,20.80691639]
[1746608944094,151.75356058,148.11,148.07,20.80691639]
[1746608944280,5.05668372,148.08,148.07,20.80691639]
[1746608950915,5.05668372,148.08,148.07,6.75335581]
[1746608951691,5.05668372,148.08,148.05,20.80774277]
[1746608952028,5.05668372,148.07,148.06,14.05356058]
[1746608952908,5.05668372,148.07,148.06,20.80757922]
[1746608954409,5.05668372,148.07,148.03,23.6429564]
[1746608954709,5.05668372,148.07,148.05,14.05356058]
[1746608954909,5.05668372,148.07,148.06,14.05356058]
[1746608956522,5.05668372,148.07,148.03,6.75538742]
[1746608956725,5.05668372,148.07,148.04,14.05356058]
[1746608956926,5.05668372,148.06,148.05,14.05356058]
[1746608958930,5.05668372,148.06,148.05,20.80803541]
[1746608960138,5.05668372,148.06,148.02,6.7558438]
[1746608960338,14.05356058,148.05,148.02,6.7558438]
[1746608961129,14.05356058,148.05,148.01,6.75630024]
[1746608961301,5.05668372,148.04,148.01,6.75630024]
[1746608961502,14.05356058,148.02,147.96,32.85627683]
[1746608961708,14.05356058,148.02,147.97,14.05356058]
[1746608961929,14.05356058,148.02,147.96,32.85627683]
[1746608961930,14.05356058,148.02,147.98,14.05356058]
[1746608962523,5.05668372,148.01,147.98,14.05356058]
[1746608962923,5.05668372,148.01,148.0,14.05356058]
[1746608964935,5.05668372,148.01,148.0,20.81031733]
[1746608971240,5.05668372,148.01,147.97,16.89424535]
[1746608971241,5.05668372,148.01,147.99,20.81063997]
[1746608971413,5.05668372,148.01,147.99,6.75707939]
[1746608972332,5.05668372,148.0,147.99,6.75707939]
[1746608972532,5.05668372,148.0,147.99,20.81063997]
[1746608974729,14.05356058,148.05,147.99,37.70367328]
[1746608974902,14.05356058,148.05,148.0,14.05356058]
[1746608976040,5.04086231,148.04,148.0,14.05356058]
[1746608976231,19.09442289,148.04,148.0,14.05356058]
[1746608976637,14.05356058,148.03,147.99,23.6501127]
[1746608976814,14.05356058,148.03,147.99,37.70367328]
[1746608977014,5.04086231,148.02,147.99,37.70367328]
[1746608978437,19.09442289,148.02,147.99,6.75707939]
[1746608978639,19.09442289,148.01,147.99,6.75707939]
[1746608978937,5.04086231,148.01,147.99,6.75707939]
[1746608979629,5.04086231,148.0,147.99,6.75707939]
[1746608980637,5.04086231,148.0,147.99,20.81063997]
[1746608981337,40.05356058,148.04,147.99,20.81063997]
[1746608981542,40.05356058,148.04,148.0,14.05356058]
[1746608982438,5.03868264,148.03,148.01,6.75630024]
[1746608983240,5.03868264,148.02,148.01,6.75630024]
[1746608983639,5.03868264,148.02,148.01,20.80986082]
[1746608985544,5.03868264,148.02,148.01,6.75630024]
[1746608985730,5.03868264,148.02,148.01,20.80986082]
[1746608986035,137.7,148.08,148.01,56.3502603]
[1746608986341,137.7,148.08,148.05,14.05356058]
[1746608986640,137.7,148.08,148.06,6.75401864]
[1746608987038,5.03779562,148.07,148.06,6.75401864]
[1746608989345,5.03779562,148.07,148.05,6.7543108]
[1746608989549,19.0913562,148.07,148.02,6.7558438]
[1746608989739,5.03779562,148.06,148.03,14.05356058]
[1746608990252,19.0913562,148.06,148.02,20.80940438]
[1746608990551,5.03779562,148.06,148.02,20.80940438]
[1746608990762,5.03779562,148.06,148.01,16.89055431]
[1746608991047,5.03779562,148.05,148.02,14.05356058]
[1746608991751,5.03779562,148.04,148.02,14.05356058]
[1746608992768,5.03779562,148.03,148.02,14.05356058]
[1746608993050,5.03779562,148.03,148.02,20.80940438]
[1746608995038,137.7,148.08,148.02,14.05356058]
[1746608995343,151.75356058,148.08,148.03,14.05356058]
[1746608995537,137.7,148.08,148.04,14.05356058]
[1746608995739,151.75356058,148.08,148.0,18.64964886]
[1746608995944,5.04673222,148.07,148.04,14.05356058]
[1746608996256,19.1002928,148.07,148.03,14.05356058]
[1746608996752,5.04673222,148.06,148.03,14.05356058]
[1746608996958,5.04673222,148.06,147.99,23.65024663]
[1746608997153,5.04673222,148.06,148.03,20.80877277]
[1746608997557,5.04673222,148.06,148.04,14.05356058]
[1746608998060,5.04673222,148.06,148.05,14.05356058]
[1746608999457,5.04673222,148.06,148.05,20.80803541]
[1746608999966,5.04673222,148.06,148.05,6.75447483]